fUSD/lending_fUSD_20260625
["ID","MTS","AMOUNT","RATE_DAILY","PERIOD"]
[426429556,1782382232000,-309.0,0.00014447,2]
[426429540,1782382232000,-319.0,0.00014447,2]
[426429543,1782382232000,-311.0,0.00014447,2]
[426429542,1782382232000,-314.0,0.00014447,2]
[426429539,1782382232000,-315.0,0.00014447,2]
[426429541,1782382232000,-151.0,0.00014447,2]
[426429545,1782382232000,-311.0,0.00014447,2]
[426429547,1782382232000,-151.20548298,0.00014447,2]
[426429553,1782382232000,-310.0,0.00014447,2]
[426429546,1782382232000,-320.0,0.00014447,2]
[426429554,1782382232000,-312.0,0.00014447,2]
[426429548,1782382232000,-153.0,0.00014447,2]
[426429550,1782382232000,-314.0,0.00014447,2]
[426429551,1782382232000,-316.0,0.00014447,2]
[426429549,1782382232000,-313.0,0.00014447,2]
[426429576,1782382232000,-150.0,0.00014447,2]
[426429589,1782382233000,-151.0,0.00014447,2]
[426429585,1782382233000,-313.0,0.00014447,2]
[426429584,1782382233000,-320.0,0.00014447,2]
[426429583,1782382233000,-150.0,0.00014447,2]
[426429582,1782382233000,-317.0,0.00014447,2]
[426429578,1782382233000,-311.0,0.00014447,2]
[426429580,1782382233000,-312.0,0.00014447,2]
[426429579,1782382233000,-151.0,0.00014447,2]
[426429590,1782382233000,-318.0,0.00014447,2]
[426429587,1782382233000,-311.0,0.00014447,2]
[426429581,1782382233000,-320.0,0.00014447,2]
[426429586,1782382233000,-153.0,0.00014447,2]
[426429599,1782382233000,-260.69643542,0.00014447,2]
[426429591,1782382233000,-321.0,0.00014447,2]
[426429588,1782382233000,-314.0,0.00014447,2]
[426429601,1782382233000,-152.0,0.00014447,2]
[426429602,1782382233000,-314.0,0.00014447,2]
[426429600,1782382233000,-51.30356458,0.00014447,2]
[426429595,1782382233000,-320.0,0.00014447,2]
[426429603,1782382233000,-26.71643542,0.00014447,2]
[426429597,1782382233000,-234.22435144,0.00014447,2]
[426429596,1782382233000,-153.0,0.00014447,2]
[426429592,1782382233000,-319.0,0.00014447,2]
[426429598,1782382233000,-85.77564856,0.00014447,2]
[426429594,1782382233000,-309.0,0.00014447,2]
[426429593,1782382233000,-153.0,0.00014447,2]
[426429623,1782382238000,-318.0,0.00014447,2]
[426429627,1782382238000,-91.99919908,0.00014447,2]
[426429621,1782382238000,-151.0,0.00014447,2]
[426429629,1782382238000,-151.0,0.00014447,2]
[426429622,1782382238000,-312.0,0.00014447,2]
[426429626,1782382238000,-220.00080092,0.00014447,2]
[426429630,1782382238000,-311.0,0.00014447,2]
[426429620,1782382238000,-314.0,0.00014447,2]
[426429625,1782382238000,-151.0,0.00014447,2]
[426429624,1782382238000,-317.0,0.00014447,2]
[426429628,1782382238000,-317.0,0.00014447,2]
[426429616,1782382238000,-320.0,0.00014447,2]
[426429619,1782382238000,-317.0,0.00014447,2]
[426429615,1782382238000,-315.0,0.00014447,2]
[426429612,1782382238000,-317.0,0.00014447,2]
[426429614,1782382238000,-152.0,0.00014447,2]
[426429613,1782382238000,-317.0,0.00014447,2]
[426429611,1782382238000,-153.0,0.00014447,2]
[426429610,1782382238000,-282.62825813,0.00014447,2]
[426429618,1782382238000,-153.0,0.00014447,2]
[426429609,1782382238000,-29.37174187,0.00014447,2]
[426429607,1782382238000,-13.71264571,0.00014136,2]
[426429608,1782382238000,-289.28356458,0.00014447,2]
[426429606,1782382238000,-305.28735429,0.00014136,2]
[426429631,1782382238000,-314.0,0.00014447,2]
[426429617,1782382238000,-321.0,0.00014447,2]
[426429632,1782382238000,-319.0,0.00014447,2]
[426429655,1782382238000,-309.0,0.00014447,2]
[426429637,1782382238000,-318.0,0.00014447,2]
[426429634,1782382238000,-318.0,0.00014447,2]
[426429658,1782382238000,-310.0,0.00014447,2]
[426429656,1782382238000,-316.0,0.00014447,2]
[426429659,1782382238000,-311.0,0.00014447,2]
[426429660,1782382238000,-309.0,0.00014447,2]
[426429657,1782382238000,-151.0,0.00014447,2]
[426429647,1782382238000,-151.0,0.00014447,2]
[426429645,1782382238000,-319.0,0.00014447,2]
[426429646,1782382238000,-320.0,0.00014447,2]
[426429648,1782382238000,-320.0,0.00014447,2]
[426429653,1782382238000,-318.0,0.00014447,2]
[426429652,1782382238000,-312.0,0.00014447,2]
[426429649,1782382238000,-311.0,0.00014447,2]
[426429654,1782382238000,-150.0,0.00014447,2]
[426429643,1782382238000,-151.0,0.00014447,2]
[426429639,1782382238000,-313.0,0.00014447,2]
[426429640,1782382238000,-151.0,0.00014447,2]
[426429636,1782382238000,-151.0,0.00014447,2]
[426429633,1782382238000,-151.0,0.00014447,2]
[426429635,1782382238000,-315.0,0.00014447,2]
[426429641,1782382238000,-317.0,0.00014447,2]
[426429642,1782382238000,-311.0,0.00014447,2]
[426429644,1782382238000,-315.0,0.00014447,2]
[426429651,1782382238000,-318.0,0.00014447,2]
[426429650,1782382238000,-151.0,0.00014447,2]
[426429638,1782382238000,-311.0,0.00014447,2]
[426429678,1782382239000,-140.63939249,0.00014447,2]
[426429683,1782382239000,-151.0,0.00014447,2]
[426429686,1782382239000,-151.0,0.00014447,2]
[426429692,1782382239000,-52.34763666,0.00014447,2]
[426429689,1782382239000,-151.0,0.00014447,2]
[426429703,1782382239000,-145.2022413,0.00014447,2]
[426429699,1782382239000,-151.0,0.00014447,2]
[426429701,1782382239000,-151.0,0.00014447,2]
[426429705,1782382239000,-5.7977587,0.00014447,2]
[426429711,1782382239000,-152.0,0.00014447,2]
[426429696,1782382239000,-98.65236334,0.00014447,2]
[426429674,1782382239000,-150.0,0.00014447,2]
[426429713,1782382239000,-151.0,0.00014447,2]
[426429668,1782382239000,-153.0,0.00014447,2]
[426429670,1782382239000,-151.0,0.00014447,2]
[426429681,1782382239000,-11.36060751,0.00014447,2]
[426429672,1782382239000,-151.0,0.00014447,2]
[426429661,1782382239000,-150.0,0.00014447,2]
[426429665,1782382239000,-150.0,0.00014447,2]
[426429664,1782382239000,-151.0,0.00014447,2]
[426429663,1782382239000,-151.0,0.00014447,2]
[426429666,1782382239000,-151.0,0.00014447,2]
[426429662,1782382239000,-314.0,0.00014447,2]
[426429667,1782382239000,-151.0,0.00014447,2]
[426429676,1782382239000,-150.0,0.00014447,2]
[426429709,1782382239000,-151.0,0.00014447,2]
[426429741,1782382239000,-224.805967,0.00014976,2]
[426429707,1782382239000,-151.0,0.00014447,2]
[426429765,1782382239000,-800.95895786,0.00015,2]
[426429759,1782382239000,-300.0,0.00014999,2]
[426429757,1782382239000,-300.0,0.00014999,2]
[426429762,1782382239000,-666.0,0.00014999,2]
[426429753,1782382239000,-300.0,0.00014999,2]
[426429749,1782382239000,-502.43903412,0.00014999,2]
[426429747,1782382239000,-206.9457971,0.00014999,2]
[426429751,1782382239000,-166.01856341,0.00014999,2]
[426429755,1782382239000,-701.79231786,0.00014999,2]
[426429745,1782382239000,-200.34083419,0.00014999,2]
[426429739,1782382239000,-175.42733258,0.00014959,2]
[426429764,1782382239000,-1070.90015198,0.00015,2]
[426429735,1782382239000,-5800.0,0.000149,2]
[426429743,1782382239000,-500.0,0.00014999,2]
[426429720,1782382239000,-6272.14837225,0.000145,2]
[426429718,1782382239000,-216.45114417,0.00014462,2]
[426429724,1782382239000,-166.66,0.00014594,2]
[426429722,1782382239000,-34436.25136767,0.000145,2]
[426429715,1782382239000,-160.0,0.00014462,2]
[426429726,1782382239000,-2500.0,0.00014705,2]
[426429728,1782382239000,-5800.0,0.00014874,2]
[426429730,1782382239000,-5800.0,0.00014883,2]
[426429732,1782382239000,-5800.0,0.00014891,2]
[426429763,1782382239000,-7020597.36303673,0.00015,2]
[426429737,1782382239000,-1211.82755975,0.000149,2]
[426429768,1782382240000,-395.92311807,0.00015,2]
[426429769,1782382240000,-44932.24297751,0.00015,2]
[426429770,1782382240000,-1530.60354343,0.00015,2]
[426429766,1782382240000,-1573.30126496,0.00015,2]
[426429772,1782382240000,-305.29216344,0.00015,2]
[426429771,1782382240000,-3066.49437568,0.00015,2]
[426429767,1782382240000,-45010.33039426,0.00015,2]
[426429774,1782382240000,-299.54,0.00015,2]
[426429773,1782382240000,-629.2242848,0.00015,2]
[426429790,1782382243000,-648.84638604,0.00015,2]
[426429833,1782382246000,-1227.83,0.000144,2]
[426429830,1782382246000,-318.0,0.00014136,2]
[426429831,1782382246000,-15579.61284147,0.000144,2]
[426430022,1782382281000,373.0,0.00031304,30]
[426430023,1782382282000,373.0,0.00031304,30]
[426430024,1782382286000,743.0,0.00031304,30]
[426430027,1782382294000,158.06,0.00030606,30]
[426430026,1782382294000,165.31,0.00029931,30]
[426430025,1782382294000,158.06,0.00029931,30]
[426430029,1782382295000,165.34,0.00031506,30]
[426430028,1782382295000,158.06,0.00031281,30]
[426430030,1782382302000,197.36,0.00029931,30]
[426430031,1782382303000,197.36,0.00030456,30]
[426430032,1782382304000,197.36,0.00030981,30]
[426430033,1782382305000,197.4,0.00031506,30]
[426430036,1782382456000,152.0,0.00028709,30]
[426430037,1782382458000,159.0,0.00029709,30]
[426430038,1782382504000,157.0,0.00028709,30]
[426430039,1782382505000,164.0,0.00029709,30]
[426430040,1782382536000,162.0,0.00028709,30]
[426430041,1782382537000,168.0,0.00029709,30]
[426430042,1782382555000,165.0,0.00028709,30]
[426430043,1782382556000,170.0,0.00029709,30]
[426430044,1782382586000,159.0,0.00028709,30]
[426430045,1782382587000,167.0,0.00029709,30]
[426430046,1782382617000,159.0,0.00028709,30]
[426430047,1782382619000,163.0,0.00029709,30]
[426430048,1782382653000,158.0,0.00028709,30]
[426430050,1782382672000,162.0,0.00028709,30]
[426430051,1782382673000,168.0,0.00029709,30]
[426430052,1782382691000,156.0,0.00028709,30]
[426430053,1782382692000,156.0,0.00029709,30]
[426430054,1782382693000,158.0,0.00030709,30]
[426430056,1782382740000,158.0,0.00028709,30]
[426430057,1782382742000,160.0,0.00029709,30]
[426430058,1782382759000,163.04,0.00029223,30]
[426430059,1782382788000,159.44,0.00030561,30]
[426430060,1782382862000,160.89,0.00030561,30]
[426430061,1782382932000,152.11,0.00030561,30]
[426430064,1782382952000,166.66,0.00013907,2]
[426430063,1782382952000,166.66,0.00013626,2]
[426430062,1782382952000,166.66,0.00013345,2]
[426430070,1782383008000,164.44302542,0.00026726,120]
[426430072,1782383046000,151.0,0.00012608,2]
[426430073,1782383049000,151.0,0.00012608,2]
[426430074,1782383053000,151.0,0.00012608,2]
[426430075,1782383056000,151.0,0.00012608,2]
[426430077,1782383277000,200.0,0.00013699,2]
[426430080,1782383406000,250.0,0.00014,2]
[426430085,1782383432000,-600.0,0.00014216,2]
[426430084,1782383432000,-166.66,0.00014188,2]
[426430086,1782383432000,-300.0,0.00014216,2]
[426430087,1782383432000,-600.0,0.00014244,2]
[426430088,1782383432000,-166.01856341,0.00014246,2]
[426430089,1782383432000,-206.9457971,0.00014246,2]
[426430090,1782383432000,-122.60523544,0.00014246,2]
[426430092,1782383432000,-500.0,0.00014246,2]
[426430091,1782383432000,-379.83379868,0.00014246,2]
[426430093,1782383432000,-200.34083419,0.00014246,2]
[426430098,1782383432000,-356.44950306,0.00014247,2]
[426430096,1782383432000,-18191.60070677,0.00014247,2]
[426430094,1782383432000,-427.10657178,0.00014247,2]
[426430103,1782383432000,-2367.96595277,0.00014247,2]
[426430102,1782383432000,-808.4534481,0.00014247,2]
[426430100,1782383432000,-750.44295624,0.00014247,2]
[426430104,1782383432000,-2055.23521964,0.00014247,2]
[426430101,1782383432000,-1083.87283605,0.00014247,2]
[426430099,1782383432000,-330.96948114,0.00014247,2]
[426430097,1782383432000,-106881.7715906,0.00014247,2]
[426430095,1782383432000,-302.77030002,0.00014247,2]
[426430105,1782383432000,-2764.25765987,0.00014247,2]
[426430131,1782383438000,-300.0,0.0001427,2]
[426430140,1782383438000,-310.0,0.000143,2]
[426430139,1782383438000,-153.0,0.000143,2]
[426430138,1782383438000,-310.0,0.000143,2]
[426430137,1782383438000,-309.0,0.000143,2]
[426430134,1782383438000,-309.0,0.000143,2]
[426430136,1782383438000,-320.0,0.000143,2]
[426430132,1782383438000,-300.0,0.0001427,2]
[426430129,1782383438000,-119241.3031,0.00014247,2]
[426430125,1782383438000,-15747.95566743,0.00014247,2]
[426430130,1782383438000,-600.0,0.0001427,2]
[426430127,1782383438000,-2349.45264352,0.00014247,2]
[426430128,1782383438000,-199907.40758397,0.00014247,2]
[426430143,1782383438000,-317.0,0.000143,2]
[426430121,1782383438000,-500.0,0.00014246,2]
[426430126,1782383438000,-597.30295546,0.00014247,2]
[426430124,1782383438000,-4017.42452358,0.00014247,2]
[426430123,1782383438000,-453.07047737,0.00014246,2]
[426430122,1782383438000,-500.0,0.00014246,2]
[426430133,1782383438000,-312.0,0.000143,2]
[426430141,1782383438000,-318.0,0.000143,2]
[426430135,1782383438000,-151.0,0.000143,2]
[426430144,1782383438000,-2500.0,0.000143,2]
[426430142,1782383438000,-150.0,0.000143,2]
[426430166,1782383438000,-314.0,0.00014347,2]
[426430162,1782383438000,-152.0,0.00014347,2]
[426430164,1782383438000,-312.0,0.00014347,2]
[426430155,1782383438000,-348.35851751,0.00014347,2]
[426430156,1782383438000,-348.35851751,0.00014347,2]
[426430157,1782383438000,-348.35851751,0.00014347,2]
[426430165,1782383438000,-315.0,0.00014347,2]
[426430152,1782383438000,-348.35851751,0.00014347,2]
[426430160,1782383438000,-152.0,0.00014347,2]
[426430161,1782383438000,-152.0,0.00014347,2]
[426430163,1782383438000,-279.42353687,0.00014347,2]
[426430158,1782383438000,-348.35851751,0.00014347,2]
[426430153,1782383438000,-348.35851751,0.00014347,2]
[426430148,1782383438000,-317.0,0.00014347,2]
[426430147,1782383438000,-150.0,0.00014346,2]
[426430145,1782383438000,-4016.04531161,0.000143,2]
[426430150,1782383438000,-348.35851751,0.00014347,2]
[426430149,1782383438000,-151.0,0.00014347,2]
[426430146,1782383438000,-311.0,0.00014346,2]
[426430154,1782383438000,-348.35851751,0.00014347,2]
[426430151,1782383438000,-348.35851751,0.00014347,2]
[426430197,1782383439000,-319.0,0.000144,2]
[426430195,1782383439000,-320.0,0.000144,2]
[426430179,1782383439000,-317.0,0.00014347,2]
[426430181,1782383439000,-4016.04531158,0.00014367,2]
[426430183,1782383439000,-312.0,0.000144,2]
[426430199,1782383439000,-4016.04531158,0.00014433,2]
[426430185,1782383439000,-314.0,0.000144,2]
[426430189,1782383439000,-313.0,0.000144,2]
[426430211,1782383439000,-4016.04531158,0.00014567,2]
[426430191,1782383439000,-310.0,0.000144,2]
[426430187,1782383439000,-310.0,0.000144,2]
[426430193,1782383439000,-310.0,0.000144,2]
[426430177,1782383439000,-313.0,0.00014347,2]
[426430176,1782383439000,-319.0,0.00014347,2]
[426430172,1782383439000,-321.0,0.00014347,2]
[426430169,1782383439000,-315.0,0.00014347,2]
[426430171,1782383439000,-315.0,0.00014347,2]
[426430167,1782383439000,-320.0,0.00014347,2]
[426430170,1782383439000,-320.0,0.00014347,2]
[426430173,1782383439000,-310.0,0.00014347,2]
[426430168,1782383439000,-313.0,0.00014347,2]
[426430178,1782383439000,-321.0,0.00014347,2]
[426430175,1782383439000,-313.0,0.00014347,2]
[426430213,1782383439000,-230.72478603,0.00014604,2]
[426430174,1782383439000,-312.0,0.00014347,2]
[426430180,1782383439000,-216.45114417,0.00014362,2]
[426430203,1782383439000,-552.91999968,0.00014455,2]
[426430262,1782383439000,-6227935.82941162,0.00015,2]
[426430207,1782383439000,-153.85,0.0001448,2]
[426430250,1782383439000,-263.34368756,0.000149,2]
[426430260,1782383439000,-666.0,0.00014999,2]
[426430270,1782383439000,-1517.12268375,0.00015,2]
[426430254,1782383439000,-300.0,0.00014999,2]
[426430256,1782383439000,-300.0,0.00014999,2]
[426430252,1782383439000,-300.0,0.00014999,2]
[426430258,1782383439000,-300.0,0.00014999,2]
[426430248,1782383439000,-294.31234814,0.000149,2]
[426430242,1782383439000,-25000.0,0.000149,3]
[426430246,1782383439000,-1211.82755975,0.000149,2]
[426430237,1782383439000,-5800.0,0.00014891,2]
[426430239,1782383439000,-5800.0,0.000149,2]
[426430201,1782383439000,-315.0,0.00014447,2]
[426430244,1782383439000,-4016.04531158,0.000149,2]
[426430229,1782383439000,-305955.187348,0.00014802,2]
[426430235,1782383439000,-5800.0,0.00014883,2]
[426430225,1782383439000,-1380.8381112,0.00014802,2]
[426430233,1782383439000,-5800.0,0.00014874,2]
[426430227,1782383439000,-118958.06342,0.00014802,2]
[426430221,1782383439000,-166.66,0.0001475,2]
[426430223,1782383439000,-4016.04531158,0.00014767,2]
[426430205,1782383439000,-166.66,0.00014469,2]
[426430217,1782383439000,-4016.04531158,0.000147,2]
[426430209,1782383439000,-4016.04531158,0.000145,2]
[426430215,1782383439000,-4016.04531158,0.00014633,2]
[426430219,1782383439000,-162.39,0.00014724,2]
[426430231,1782383439000,-4016.04531158,0.00014833,2]
[426430279,1782383440000,-7409.87627141,0.00015,2]
[426430281,1782383440000,-483.92578984,0.00015,2]
[426430282,1782383440000,-272.24010028,0.00015,2]
[426430280,1782383440000,-989.94800506,0.00015,2]
[426430283,1782383441000,-1294.91614636,0.00015,2]
[426430306,1782383446000,-554.0,0.00015,2]
[426430305,1782383446000,-1605.94198395,0.00015,2]
[426430304,1782383446000,-2761.31287188,0.00015,2]
[426430302,1782383446000,-11043.26388411,0.00015,2]
[426430303,1782383446000,-2577.7211,0.00015,2]
[426430300,1782383446000,-18153.85960751,0.00015,2]
[426430301,1782383446000,-9695.86784737,0.00015,2]
[426430321,1782383649000,-600.0,0.00015607,2]
[426430319,1782383649000,-600.0,0.00015607,2]
[426430322,1782383649000,-300.0,0.00015607,2]
[426430324,1782383649000,-5028.81463217,0.00016,2]
[426430323,1782383649000,-5028.81463217,0.000159,2]
[426430320,1782383649000,-300.0,0.00015607,2]
[426430312,1782383649000,-8496889.28932788,0.00015,2]
[426430317,1782383649000,-267.10740959,0.00015555,2]
[426430314,1782383649000,-2763.68585661,0.00015,7]
[426430316,1782383649000,-167.76,0.00015272,2]
[426430313,1782383649000,-1813.6317036,0.00015,2]
[426430311,1782383649000,-753.55,0.00015,2]
[426430310,1782383649000,-4551969.72549177,0.00015,2]
[426430315,1782383649000,-151.13177012,0.00015068,2]
[426430325,1782383649000,-160.0,0.00016,8]
[426430318,1782383649000,-310.71110687,0.0001558,2]
[426430328,1782383649000,-198.95181053,0.00016,2]
[426430327,1782383649000,-300.0,0.00016,2]
[426430342,1782383649000,-172.23,0.00016712,2]
[426430341,1782383649000,-5028.81463217,0.000167,2]
[426430340,1782383649000,-331.4383271,0.00016621,2]
[426430339,1782383649000,-1961.0,0.00016533,5]
[426430337,1782383649000,-5028.81463217,0.000165,2]
[426430336,1782383649000,-45435.19,0.00016474,2]
[426430338,1782383649000,-1579.0,0.00016533,5]
[426430332,1782383649000,-5028.81463217,0.000164,2]
[426430333,1782383649000,-236.0,0.00016438,2]
[426430334,1782383649000,-500.0,0.00016438,2]
[426430335,1782383649000,-219.55785031,0.00016438,2]
[426430331,1782383649000,-5028.81463217,0.000162,2]
[426430329,1782383649000,-198.95181053,0.000161,2]
[426430330,1782383649000,-1978.0,0.000162,5]
[426430326,1782383649000,-195.04159,0.00016,2]
[426430380,1782383650000,-1073.57782202,0.000184,2]
[426430378,1782383650000,-309.0,0.00018365,2]
[426430375,1782383650000,-702.7360891,0.0001813,2]
[426430373,1782383650000,-451.09096693,0.00018086,2]
[426430374,1782383650000,-1808.68877903,0.000181,2]
[426430376,1782383650000,-1073.57782202,0.000182,2]
[426430371,1782383650000,-185.486808,0.00018082,2]
[426430372,1782383650000,-300.88110507,0.00018086,2]
[426430382,1782383650000,-470.46,0.00018515,2]
[426430377,1782383650000,-189.86987819,0.000182,2]
[426430379,1782383650000,-753.55,0.000184,2]
[426430392,1782383650000,-1073.57782202,0.000189,2]
[426430381,1782383650000,-1073.57782202,0.000185,2]
[426430384,1782383650000,-283.215372,0.0001862,2]
[426430386,1782383650000,-1073.57782202,0.000187,2]
[426430387,1782383650000,-2000.0,0.000187,2]
[426430388,1782383650000,-773.07,0.0001872,2]
[426430390,1782383650000,-552.91999968,0.00018769,2]
[426430366,1782383650000,-1073.57782202,0.00018,2]
[426430394,1782383650000,-1144.1781529,0.00019,2]
[426430389,1782383650000,-1363.11,0.0001872,2]
[426430395,1782383650000,-2388.10510472,0.00019,2]
[426430393,1782383650000,-9953.73707221,0.00019,2]
[426430383,1782383650000,-343.08,0.00018517,2]
[426430368,1782383650000,-62920.62797204,0.00018,2]
[426430361,1782383650000,-175.42733258,0.00017622,2]
[426430369,1782383650000,-1212.02328487,0.00018,2]
[426430391,1782383650000,-220.205878,0.00018795,2]
[426430344,1782383650000,-5028.81463217,0.000169,2]
[426430343,1782383650000,-200.0,0.00016864,2]
[426430347,1782383650000,-150.99,0.00016922,2]
[426430345,1782383650000,-5397.84,0.00016922,2]
[426430346,1782383650000,-5091.65,0.00016922,2]
[426430348,1782383650000,-5028.81463217,0.00017,2]
[426430349,1782383650000,-500.0,0.00017123,2]
[426430350,1782383650000,-5028.81463217,0.000172,2]
[426430352,1782383650000,-300.0,0.00017275,2]
[426430354,1782383650000,-251.42728858,0.00017275,2]
[426430367,1782383650000,-189.86987819,0.00018,2]
[426430353,1782383650000,-244.33732715,0.00017275,2]
[426430358,1782383650000,-5028.81463217,0.000174,2]
[426430356,1782383650000,-3974.7667497,0.00017276,2]
[426430357,1782383650000,-151.0,0.00017382,2]
[426430355,1782383650000,-376.94815927,0.00017275,2]
[426430359,1782383650000,-293.7,0.00017467,2]
[426430360,1782383650000,-316.0,0.0001757,2]
[426430363,1782383650000,-630.42137469,0.00017708,2]
[426430362,1782383650000,-4015.05532469,0.00017699,2]
[426430364,1782383650000,-1785.13,0.00017726,2]
[426430365,1782383650000,-2010.64,0.00017728,2]
[426430370,1782383650000,-350.0,0.00018,2]
[426430351,1782383650000,-236.0,0.0001726,2]
[426430396,1782383650000,-875.32362819,0.00019031,2]
[426430385,1782383650000,-168.234652,0.0001862,2]
[426430399,1782383650000,-3567.42,0.00019158,2]
[426430425,1782383650000,-1073.57782202,0.000193,2]
[426430426,1782383650000,-2000.0,0.000193,2]
[426430429,1782383650000,-888.0,0.00019452,2]
[426430428,1782383650000,-162.69,0.00019355,7]
[426430430,1782383650000,-432.0,0.0001947,2]
[426430431,1782383650000,-1073.57782202,0.000195,2]
[426430432,1782383650000,-2000.0,0.000196,2]
[426430433,1782383650000,-175.42733258,0.00019622,2]
[426430434,1782383650000,-1073.57782202,0.000197,2]
[426430436,1782383650000,-185.43316387,0.000199,2]
[426430435,1782383650000,-2000.0,0.000199,2]
[426430424,1782383650000,-1235.844,0.00019258,2]
[426430441,1782383650000,-170606.29266768,0.0001995,15]
[426430440,1782383650000,-328126.02758615,0.0001995,15]
[426430438,1782383650000,-300.0,0.00019949,2]
[426430442,1782383650000,-320.0,0.0001995,2]
[426430445,1782383650000,-3103.53208417,0.00019999,2]
[426430443,1782383650000,-320.0,0.0001995,2]
[426430447,1782383650000,-1561.19726438,0.0002,2]
[426430444,1782383650000,-150.0,0.0001995,2]
[426430446,1782383650000,-5304.01607613,0.0002,2]
[426430448,1782383650000,-179.64429851,0.0002,2]
[426430450,1782383650000,-384.74899324,0.0002,2]
[426430400,1782383650000,-6141.852,0.00019158,2]
[426430437,1782383650000,-300.0,0.00019949,2]
[426430427,1782383650000,-420.0,0.00019314,2]
[426430439,1782383650000,-701.79231786,0.00019949,2]
[426430421,1782383650000,-491.0,0.00019258,2]
[426430423,1782383650000,-1277.0,0.00019258,2]
[426430397,1782383650000,-224.80596703,0.00019038,2]
[426430398,1782383650000,-1073.57782202,0.000191,2]
[426430403,1782383650000,-1000.0,0.00019178,2]
[426430404,1782383650000,-1000.0,0.00019178,2]
[426430402,1782383650000,-1000.0,0.00019178,2]
[426430405,1782383650000,-1000.0,0.00019178,2]
[426430449,1782383650000,-26047.18382464,0.0002,2]
[426430406,1782383650000,-760.5431842,0.00019178,2]
[426430408,1782383650000,-175.0,0.00019248,2]
[426430407,1782383650000,-20518.94,0.00019178,2]
[426430409,1782383650000,-150.0,0.00019248,2]
[426430401,1782383650000,-1000.0,0.00019178,2]
[426430422,1782383650000,-1361.0,0.00019258,2]
[426430410,1782383650000,-150.0,0.00019248,2]
[426430419,1782383650000,-191.0,0.00019248,2]
[426430420,1782383650000,-249.496,0.00019248,2]
[426430418,1782383650000,-250.0,0.00019248,2]
[426430411,1782383650000,-150.0,0.00019248,2]
[426430415,1782383650000,-250.0,0.00019248,2]
[426430417,1782383650000,-167.9,0.00019248,2]
[426430412,1782383650000,-170.0,0.00019248,2]
[426430414,1782383650000,-150.299,0.00019248,2]
[426430413,1782383650000,-150.0,0.00019248,2]
[426430416,1782383650000,-195.784,0.00019248,2]
[426430492,1782383651000,-603.48045861,0.000207,2]
[426430490,1782383651000,-289.40019274,0.0002058,2]
[426430491,1782383651000,-849.4515839,0.000206,2]
[426430489,1782383651000,-150.0,0.0002058,2]
[426430488,1782383651000,-150.0,0.0002058,2]
[426430482,1782383651000,-774.67,0.00020548,2]
[426430487,1782383651000,-150.0,0.0002058,2]
[426430484,1782383651000,-997.4398716,0.0002057,2]
[426430485,1782383651000,-150.0,0.0002058,2]
[426430483,1782383651000,-10828.14,0.00020548,2]
[426430493,1782383651000,-849.4515839,0.000208,2]
[426430486,1782383651000,-150.0,0.0002058,2]
[426430494,1782383651000,-753.55,0.000208,2]
[426430506,1782383651000,-2000.0,0.00021429,7]
[426430495,1782383651000,-446.184005,0.00020821,2]